Workbook

Sheet 표지
A5: 2021학년도
A6: 타이뻬이한국학교회계 세입세출 예산
A19: 타 이 뻬 이 한 국 학 교

Sheet 총칙
A2: 예 산 총 칙
B4: 제 1 조 2020학년도 타이뻬이한국학교회계 세입ㆍ세출 예산 총액은 세입ㆍ세출 각각 20,196,272NTD로
B5: 하며, 세입ㆍ세출의 명세는 『세입ㆍ세출예산서』와 같다.
B7: 제2조 국가로부터 용도가 지정되어 교부된 경비 또는 수익자부담경비는 추가경정예산의 성립 전에
B8: 사용할 수 있으며, 이를 차기 추가경정예산에 반영한다.
B10: 제3조 동일 예산 관내의 항간 또는 목간에 예산의 과부족이 있는 경우에는 사학기관재무ㆍ회계규칙
B11: 제21조 제3항의 규정에 의하여 상호 전용할 수 있다.
B12: 단, 회계연도 경과 후에는 예산을 전용할 수 없으며, 업무추진비에 충당하기 위하여 다른
B13: 비목에서 전용할 수 없다.
B15: 제4조 다음의 경비에 부족이 생겼을 때에는 비목 상호간 또는 타 비목으로부터 이용할 수 있다.
B16: 단; 인건비 및 시설비의 예산은 다른 과목으로 이용할 수 없다.
B17: 1. 교원 및 직원 인건비, 연구비, 수당
B18: 2. 비정규직보수, 강사료
B19: 3. 세금, 공과금, 반환금

Sheet 세입
A1: 2021학년도 타이뻬이한국학교회계 세입․세출예산서
A2: (회계연도 2021년 3월 1일 ~ 2022년 2월 28일)
A3: □ 세입
A4: 【단위 : 현지화 NTD】
A5: 구 분 | C5: (Y-1)예산 | D5: (Y-2)결산 | E5: (Y)예산 | F5: 증감 | G5: 산출기초(단위: NTD) | J5: 비고
C6: (A) | D6: (B) | E6: (C) | F6: (C-A)
A7: 학부모부담수입 | C7: =C9+C12+C18 -> 4,638,400 | D7: 0 | E7: =E9+E12+E16+E18 -> 7,407,660 | F7: =E7-C7 -> 2,769,260
B9: - 입학금 | C9: 300,000 | E9: =I9 -> 595,000 | F9: =E9-C9 -> 295,000 | G9: 1. 입학금 | I9: =SUM(I10:I11) -> 595,000
G10: ㅇ유치원 40,000NTD×10명 | H10: = | I10: =40000*10 -> 400,000
G11: ㅇ초등학생 30,000NTD×5명 | H11: = | I11: =15000*13 -> 195,000
B12: - 수업료 | C12: 3,430,000 | E12: =I12 -> 4,421,000 | F12: =E12-C12 -> 991,000 | G12: 1. 수업료 | I12: =SUM(I13:I14) -> 4,421,000
G13: ㅇ유치원 40,000NTD×24명×2회 | H13: = | I13: =40000*24*2 -> 1,920,000
G14: ㅇ초등학생 30,500NTD×41명×2회 | H14: = | I14: =30500*41*2 -> 2,501,000
G15: 2. 지난년도 수업료 | I15: 0
B16: - 학교운영지원비 | C16: 0 | D16: 0 | E16: =I16 -> 0 | F16: =E16-C16 -> 0 | G16: 1. 학교운영지원비 | I16: 0
B18: - 수익자부담경비 | C18: 908,400 | E18: =I18+I21+I27+I29+I25 -> 2,391,660 | F18: =E18-C18 -> 1,483,260 | G18: 1. 급식비 | I18: =SUM(I19:I20) -> 1,332,000
G19: ㅇ교직원 100NTD×9명×180일 | H19: = | I19: =100*9*180 -> 162,000
G20: ㅇ학생 100NTD×65명×180일 | H20: = | I20: =100*65*180 -> 1,170,000
G21: 2. 현장체험학습비 | I21: =I22+I23+I24 -> 95,000
G22: ㅇ초등 현장체험학습비 500NTD×41명×2회 | H22: = | I22: =500*41*2 -> 41,000
G23: ㅇ유치원 현장체험학습비 500NTD×24명×2회 | H23: = | I23: =500*24*2 -> 24,000
G24: ㅇ초등 수학여행비 10,000NTD×3명×1회 | H24: = | I24: =10000*3 -> 30,000
G25: 3. 토요한글학교운영비 | I25: =SUM(I26:I26) -> 192,000
G26: ㅇ토요한글학교 수업료 9,600NTD×10명×2회 | H26: = | I26: =9600*2*10 -> 192,000
G27: 4. 방과후교육활동비 | I27: =SUM(I28:I28) -> 153,600
G28: ㅇ방과후교육활동비 200NTD×8명×24회×4강좌 | H28: = | I28: =200*8*24*4 -> 153,600
G29: 5. 기타수익자부담경비 | I29: =SUM(I30:I33) -> 619,060
G30: ㅇ통학버스비 140NTD×20명×182일 | H30: = | I30: =140*20*182 -> 509,600
G31: ㅇ유치원 간식비 20NTD×24명×182일 | H31: = | I31: =20*24*182 -> 87,360
G32: ㅇ졸업앨범(초등학교) 3명× 1,700 NTD | H32: = | I32: =1700*3 -> 5,100
G33: ㅇ졸업앨범(유치원) 10명× 1,700 NTD | H33: = | I33: =1700*10 -> 17,000
A34: 교육부지원금 | C34: =SUM(C36:C51) -> 10,806,397 | D34: 0 | E34: =SUM(E36,E38,E40,E45,E47,E43,E49) -> 10,777,112 | F34: =F36+F38+F40+F43+F45+F47+F49 -> -29,285
B36: - 현재채용교직원인건비 | C36: 5,573,940 | E36: =I36 -> 5,722,556 | F36: =E36-C36 -> 148,616 | G36: 1. 현재채용교직원인건비 | I36: =SUM(I37) -> 5,722,556
G37: ㅇ인건비 5,722,556NTD×1년 | H37: = | I37: =204377*28 -> 5,722,556
B38: - 운영비 | C38: 4,571,040 | E38: =I38 -> 4,214,644 | F38: =E38-C38 -> -356,396 | G38: 1. 운영비 | I38: =SUM(I39) -> 4,214,644
G39: ㅇ운영비 4,214,644NTD×1년 | H39: = | I39: =150523*28 -> 4,214,644
B40: - 임차료 | C40: 49,817 | E40: =I40 -> 46,312 | F40: =E40-C40 -> -3,505 | G40: 1. 임차료 | I40: =SUM(I41:I42) -> 46,312
G41: ㅇ나대지 46,312NTD(1년)×1회 | H41: = | I41: =1654*28 -> 46,312
H42: =
B43: - 저소득층자녀지원 | C43: 30,000 | D43: 0 | E43: =I43 -> 150,000 | F43: =E43-C43 -> 120,000 | G43: 1. 저소득층자녀지원 | I43: =I44 -> 150,000
G44: ㅇ저소득층자녀지원금 140,000NTD×1회 | I44: 150,000
B45: - 방과후학교지원 | C45: 88,000 | D45: 0 | E45: =I45 -> 150,000 | F45: =E45-C45 -> 62,000 | G45: 1. 방과후학교지원 | I45: =SUM(I46) -> 150,000
G46: ㅇ방과후학교운영비 | H46: = | I46: 150,000
B47: - 시설(대수선)비 | C47: 0 | E47: =I47 -> 0 | F47: =E47-C47 -> 0 | G47: 1. 시설(대수선)비 | I47: 0
B49: - 기타교육부지원금 | C49: 493,600 | D49: 0 | E49: =I49 -> 493,600 | F49: =E49-C49 -> 0 | G49: 1. 기타교육부지원 | I49: =SUM(I50:I51) -> 493,600
G50: ㅇ토요한글학교운영비(재단지원금) | H50: = | I50: 153,600
G51: ㅇ교수학습재료구입비 | H51: = | I51: 340,000
A52: 자체수입 | C52: =SUM(C54+C58) -> 11,500 | D52: 0 | E52: =E54+E58 -> 11,500 | F52: =SUM(F54,F58) -> 0
B54: - 사용료및수수료 | C54: 5,500 | E54: =I54+I56 -> 5,500 | F54: =E54-C54 -> 0 | G54: 1.사용료 | I54: =SUM(I55) -> 3,500
G55: ㅇ 교실 및 강당 사용료 3,500NTD×1회 | H55: = | I55: 3,500
G56: 2. 수수료 | I56: =SUM(I57) -> 2,000
G57: ㅇ제증명발급 수수료 100NTD×3건+1,700 NTD | H57: = | I57: =100*3+1700 -> 2,000
B58: - 잡수입 | C58: 6,000 | E58: =I58+I60+I61 -> 6,000 | F58: =E58-C58 -> 0 | G58: 1. 이자수입 | I58: =SUM(I59) -> 6,000
G59: ㅇ예금이자 3,000NTD×2회 | H59: = | I59: =3000*2 -> 6,000
G60: 2. 지난년도 수입 | I60: 0
G61: 3. 기타잡수입 | I61: =SUM(I62:I62) -> 0
H62: =
A63: 전입금 및 지원금 | C63: =SUM(C65:C70) -> 0 | D63: 0 | E63: =E65+E67+E69 -> 0 | F63: 0
B65: - 학교발전기금전입금 | C65: 0 | D65: 0 | E65: =I65 -> 0 | F65: =E65-C65 -> 0 | G65: 1. 학교발전기금전입금 | I65: =I66 -> 0
I66: 0
B67: - 법인전입금 | C67: 0 | D67: 0 | E67: =I67 -> 0 | F67: =E67-C67 -> 0 | G67: 1. 법인전입금 | I67: 0
B69: - 기타지원금 | C69: 0 | D69: 0 | E69: =I69 -> 0 | F69: =E69-C69 -> 0 | G69: 1. 기타지원금 | I69: 0
A71: 기타수입 | C71: =SUM(C73:C83) -> 2,817,781 | D71: 0 | E71: =E73+E75+E80+E82 -> 2,000,000 | F71: =SUM(F73,F75,F80,F82) -> -817,781
B73: - 과년도 수입 | C73: 0 | D73: 0 | E73: =I73 -> 0 | F73: =E73-C73 -> 0 | G73: 1. 과년도수입 | I73: 0
B75: - 이월금 | C75: 2,817,781 | E75: =I75+I77+I78+I79 -> 2,000,000 | F75: =E75-C75 -> -817,781 | G75: 1. 순세계잉여금 | I75: =I76 -> 2,000,000
G76: ㅇ 2020학년도 회계 잉여금 | H76: = | I76: 2,000,000
G77: 2. 계속비 | I77: 0
G78: 3. 이월사업비
B80: - 적립금 | C80: 0 | D80: 0 | E80: =I80 -> 0 | F80: =E80-C80 -> 0 | G80: 1. 적립금 | I80: 0
B82: - 환차익 | C82: 0 | D82: 0 | E82: =I82 -> 0 | F82: =E82-C82 -> 0 | G82: 1. 환차익 | I82: 0
A84: 합 계 | C84: =C71+C63+C52+C34+C7 -> 18,274,078 | D84: 0 | E84: =SUM(E71,E63,E52,E34,E7) -> 20,196,272 | F84: =E84-C84 -> 1,922,194

Sheet 세출
A1: □ 세출
A2: 【단위 : 현지화(NTD]
A3: 구 분 | C3: (Y-1)예산 | D3: (Y-2)결산 | E3: (Y)예산 | F3: 증감 | G3: 산출기초(단위: NTD) | J3: 비고
C4: (A) | D4: (B) | E4: (C) | F4: (C-A)
A5: 인건비 | C5: =SUM(C7,C24,C49) -> 11,089,390 | D5: 0 | E5: =SUM(E7,E24,E49) -> 12,666,260 | F5: =E5-C5 -> 1,576,870
B7: - 교원 | C7: 5,490,800 | E7: =SUM(I7,I10,I19,I21) -> 5,804,200 | F7: =E7-C7 -> 313,400 | G7: 1. 기본급 | I7: =SUM(I8:I9) -> 3,361,200
G8: ㅇ교사 45,000NTD×4명×12월 | H8: = | I8: =45000*4*12 -> 2,160,000
G9: ㅇ시간강사 500NTD×3명×4.4시간×182일 | H9: = | I9: =500*3*4.4*182 -> 1,201,200
G10: 2. 수당 | I10: =SUM(I11:I18) -> 2,069,000
G11: ㅇ담임수당 4,000NTD×4명×12월 | H11: = | I11: =4000*4*12 -> 192,000
G12: ㅇ부장수당 4,000NTD×1명×12월 | H12: = | I12: =4000*1*12 -> 48,000
G13: ㅇ복지수당 7,000NTD×4명×12월 | H13: = | I13: =7000*4*12 -> 336,000
G14: ㅇ주택수당 19,000NTD×4명×12월 | H14: = | I14: =19000*4*12 -> 912,000
G15: ㅇ부양가족 추가 주택수당 2,000NTD×2명×12월 | H15: = | I15: =2000*2*12 -> 48,000
G16: ㅇ경력수당 7,000NTD×4명×12월 | H16: = | I16: =7000*4*12 -> 336,000
G17: ㅇ보전수당 4,000NTD×4명×12월 | H17: = | I17: =4000*4*12 -> 192,000
G18: ㅇ시간외근무수당 300NTD×5명×3시간×12월 | H18: = | I18: 5,000
G19: 3. 복리후생비 | I19: =SUM(I20) -> 216,000
G20: ㅇ명절휴가비 45,000NTD×4명×2회×60% | H20: = | I20: =45000*4*2*0.6 -> 216,000
G21: 4. 부담금 | I21: =SUM(I22:I23) -> 158,000
G22: ㅇ건강보험기관부담금부담금 17,000NTD×4명 | H22: = | I22: =17000*4 -> 68,000
G23: ㅇ건강보험보충부담금(2019년도분) | H23: = | I23: 90,000
B24: - 직원 및 계약교직원 | C24: 5,298,590 | E24: =SUM(I24,I37,I44,I46) -> 6,382,060 | F24: =E24-C24 -> 1,083,470 | G24: 1. 기본급 | I24: =SUM(I25:I36) -> 5,437,460
G25: ㅇ실장 45,000NTD×1명×12월 | H25: = | I25: =45000*12 -> 540,000
G26: ㅇ행정원 34,000NTD×1명×12월 | H26: = | I26: =34000*12 -> 408,000
G27: ㅇ유치원 교육전담사 230NTD×1명×8시간×182일 | H27: = | I27: =230*8*182 -> 334,880
G28: ㅇ유치원 보조원 180NTD×1명×6시간×182일 | H28: = | I28: =180*1*6*182 -> 196,560
G29: ㅇ유치원 시간강사 500NTD×1명×6시간×182일 | H29: = | I29: =500*1*6*182 -> 546,000
G30: ㅇ영어 강사수당 660NTD×1명×6시간×180일+660NTD×2명×4시간×180일 | H30: = | I30: =660*1*6*180+660*2*4*180 -> 1,663,200
G31: ㅇ중국어 강사수당 610NTD×2명×6시간×143일+550NTD×1명×2시간×143일 | H31: = | I31: =610*6*2*143+550*2*143 -> 1,204,060
G32: ㅇ외국어강사 부장수당 2,000NTD×2명×10월 | H32: = | I32: =2000*2*10 -> 40,000
G33: ㅇ통학버스 안전도우미 인건비 180NTD×2명×182일×6시간 | H33: = | I33: =180*182*6 -> 196,560
G34: ㅇ통학버스 기사 안건비(52일분) 335NTD×1명×52일×5시간+435NTD×1명×52일×5시간 | H34: = | I34: =335*52*5+435*52*5 -> 200,200
G35: ㅇ태권도 강사수당 900NTD×1명×3시간×40회 | H35: = | I35: =900*3*40 -> 108,000
G37: 2. 수당 | I37: =SUM(I38:I43) -> 581,000
G38: ㅇ직책수당(실장) 4,000NTD×1명×12월 | H38: = | I38: =4000*12 -> 48,000
G39: ㅇ경력수당(실장,행정원) 9,000NTD×12월 | H39: = | I39: =9000*12 -> 108,000
G40: ㅇ복지수당 7,000NTD×2명×12월 | H40: = | I40: =7000*2*12 -> 168,000
G41: ㅇ부양가족 추가 주택수당 2,000NTD×1명×12월 | H41: = | I41: =2000*1*12 -> 24,000
G42: ㅇ주택수당(실장) 19,000NTD×1명×12월 | H42: = | I42: =19000*12 -> 228,000
G43: ㅇ시간외근무수당 300NTD×2명×8시간×12월 | H43: = | I43: 5,000
G44: 3. 복리후생비 | I44: =SUM(I45:I45) -> 94,800
G45: ㅇ명절휴가비 39,500NTD×2명×2회×60% | H45: = | I45: =39500*2*2*0.6 -> 94,800
G46: 4. 부담금 | I46: =SUM(I47:I48) -> 268,800
G47: ㅇ건강보험기관부담금부담금 16,000NTD×12월 | H47: = | I47: =16000*12 -> 192,000
G48: ㅇ노동보험기관부담금 3,200NTD×12월 | H48: = | I48: =6400*12 -> 76,800
B49: - 퇴직적립금 | C49: 300,000 | E49: =SUM(I49,I51) -> 480,000 | F49: =E49-C49 -> 180,000 | G49: 1. 퇴휴금 | I49: =SUM(I50:I50) -> 210,000
G50: ㅇ대만국적자 직원 퇴휴금 | H50: = | I50: 210,000
G51: 2.재외교육기여장려금 | I51: =SUM(I52:I52) -> 270,000
G52: ㅇ교사 90,000NTD×3명 | H52: = | I52: =90000*3 -> 270,000
A53: 학교운영비 | C53: =SUM(C55,C88,C137,C160) -> 3,083,768 | D53: 0 | E53: =E55+E88+E137+E160 -> 3,642,168 | F53: =E53-C53 -> 558,400 | H53: =
B55: - 일반운영비 | C55: 1,367,938 | E55: =I55+I70+I83+I86 -> 1,459,118 | F55: =E55-C55 -> 91,180 | G55: 1. 교육지원부 운영 | I55: =SUM(I56:I69) -> 378,850
G56: ㅇ여비(국내) 200원×12명×2회×12월 | H56: = | I56: =200*12*2*12 -> 57,600
G57: ㅇ여비(국외출장) 20,000원×2명×2회+96,000NTD | H57: = | I57: =20000*2*2+96000 -> 176,000
G58: ㅇ교직원 채용경비 32,000원×1회 | H58: = | I58: =32000*1 -> 32,000
G59: ㅇ초등현장학습 인솔 교직원 중식 300NTD×8명×1회 | H59: = | I59: =300*8*4 -> 9,600
G60: ㅇ초등현장학습 인솔교직원 활동비 300NTD×8명×2회 | H60: = | I60: =300*8*2 -> 4,800 | L60: =I56+I57+I58+I59+I60+I61+I62+I64 -> 299,800
G61: ㅇ유치원현장학습 인솔교직원 중식 300NTD×3명×1회 | H61: = | I61: =300*3*1 -> 900
G62: ㅇ유치원현장학습 인솔교직원 활동비 300NTD×3명×1회 | H62: = | I62: =300*3*1 -> 900
G63: ㅇ거류비자 및 공작증 신청 4,500NTD×4명 | H63: = | I63: =4500*4 -> 18,000
G64: ㅇ교직원 귀임 및 부임 항공료 9,000NTD×2명 | H64: = | I64: =9000*2 -> 18,000
G65: ㅇ홈페이지 도메인 사용료 750NTD×1년 | H65: = | I65: 750
G66: ㅇ예금잔액증명 발급수수료 500NTD×5회 | H66: = | I66: =500*5 -> 2,500
G67: ㅇ타행송금및환전수수료(납입금환불) 30NTD×50회 | H67: = | I67: =30*50 -> 1,500
G68: ㅇ행정장비 유지보수 6,300NTD×1회 | H68: = | I68: =6300 -> 6,300
G69: ㅇ행정장비 소모품 구입 10,000NTD×5회 | H69: = | I69: =10000*5 -> 50,000
G70: 2. 학교시설장비유지 | I70: =SUM(I71:I82) -> 982,200
G71: ㅇ전화 및 인터넷요금 5,500N*12월 | H71: = | I71: =5500*12 -> 66,000
G72: ㅇ전기요금 20,000NTD×12월 | H72: = | I72: =20000*12 -> 240,000
G73: ㅇ상하수도요금 500NTD×12월 | H73: = | I73: =500*12 -> 6,000
G74: ㅇ우편요금 150NTD×12월 | H74: = | I74: =150*12 -> 1,800
G75: ㅇ건물 청소용역 24,000NTD×10월 | H75: = | I75: =24000*10 -> 240,000
G76: ㅇ화장실 소모품 및 청소용품 2,000NTD×4회 | H76: = | I76: =2000*4 -> 8,000
G77: ㅇ기계경비용역료 7,000NTD×12월 | H77: = | I77: =7000*12 -> 84,000
G78: ㅇ시설소모품구입 10,000NTD×10회 | H78: = | I78: =10000*10 -> 100,000
G79: ㅇ소방정밀점검 12,000NTD×1회 | H79: = | I79: =12000*1 -> 12,000
G80: ㅇ승강기안전관리용역 3,000NTD×12월 | H80: = | I80: =3000*12 -> 36,000
G81: ㅇ전기안전관리용역 3,200NTD×12월 | H81: = | I81: =3200*12 -> 38,400
G82: ㅇ소규모수선 10,000NTD×15회 | H82: = | I82: =10000*15 -> 150,000
G83: 3. 교직원 복지 및 역량강화 | I83: =SUM(I84:I85) -> 36,400
G84: ㅇ유치원 보조원 중식 지원 100NTD×2명×182일 | H84: = | I84: =100*2*182 -> 36,400
G86: 4. 임차료 | I86: =SUM(I87:I87) -> 61,668
G87: ㅇ나대지 61,668NTD×1년 | H87: = | I87: =61668 -> 61,668
B88: - 교수학습 활동비 | C88: 1,025,580 | E88: =SUM(I88,I94,I96,I98,I103,I109,I111,I118,I122,I124,I126,I131,I133) -> 1,153,200 | F88: =E88-C88 -> 127,620 | G88: 1. 교과활동지원 | I88: =SUM(I89:I93) -> 460,000
G89: ㅇ학습준비물(교수학습자료지원금) 10,000NTD×41명 | H89: = | I89: =10000*41 -> 410,000
G90: ㅇ사무용품 구입(교수학습자료지원금) 2,000NTD×5회 | H90: = | I90: =2000*5 -> 10,000
G91: ㅇ복사용지(교수학습자료지원금) 5,000NTD×2회 | H91: = | I91: =5000*2 -> 10,000
G92: ㅇ행정장비 소모품(교수학습자료지원금) 4,000NTD×6회 | H92: = | I92: 24,000
G93: ㅇ보결수당 150NTD×40시간 | H93: = | I93: =150*40 -> 6,000
G94: 2. 예체능교과활동(초등학교) | I94: =SUM(I95:I95) -> 9,000
G95: ㅇ태권도복 600NTD×15벌 | H95: = | I95: =600*15 -> 9,000
G96: 3. 예체능교과활동(유치원) | I96: =SUM(I97:I97) -> 0
H97: =
G98: 4. 영어교과활동 | I98: =SUM(I99:I102) -> 71,200
G99: ㅇ학습준비물 100NTD×45명×2회 | H99: = | I99: =100*45*2 -> 9,000
G100: ㅇ공책 10NTD×45부×6회 | H100: = | I100: =10*45*6 -> 2,700
G101: ㅇ교재 1,300NTD×45부 | H101: = | I101: =1300*45 -> 58,500
G102: ㅇ행사물품 1,000NTD×1회 | H102: = | I102: =1000*1 -> 1,000
G103: 5. 중국어교과활동 | I103: =SUM(I104:I108) -> 48,900
G104: ㅇ학습준비물 100NTD×45명×2회 | H104: = | I104: =100*45*2 -> 9,000
G105: ㅇ공책 10NTD×45부×6회 | H105: = | I105: =10*45*6 -> 2,700
G106: ㅇ교재 400NTD×90부 | H106: = | I106: =400*90 -> 36,000
G107: ㅇ행사물품 1,000NTD×1회 | H107: = | I107: =1000*1 -> 1,000
G108: ㅇ중국어능력평가 우편요금 50NTD×4회 | H108: = | I108: 200
G109: 6.유치원 교과활동 | I109: =SUM(I110:I110) -> 48,000
G110: ㅇ학습준비물 1000NTD×24명×2회 | H110: = | I110: =1000*24*2 -> 48,000
G111: 7. 자율활동(초등학교) | I111: =SUM(I112:I117) -> 83,200
G112: ㅇ학급운영비 400NTD×41명×2회 | H112: = | I112: =400*41*2 -> 32,800
G113: ㅇ환경정리 500NTD×6학급 | H113: = | I113: 3,000
G114: ㅇ학예회 무대장식 4,000NTD×1회 | H114: = | I114: =4000*1 -> 4,000
G115: ㅇ학예회 준비물품 400NTD×41명 | H115: = | I115: =400*41 -> 16,400
G116: ㅇ체육대회 준비물품 400NTD×65개 | H116: = | I116: =400*65 -> 26,000
G117: ㅇ체육대회 장소임대 1,000NTD×1회 | H117: = | I117: 1,000
G118: 8. 자율활동(유치원) | I118: =SUM(I119:I121) -> 14,900
G119: ㅇ학급운영비 200NTD×24명×2회 | H119: = | I119: =200*24*2 -> 9,600
G120: ㅇ학예회경비 400NTD×24명 | H120: = | I120: =200*24 -> 4,800
G121: ㅇ환경정리 500NTD×1학급 | H121: = | I121: 500
A122: · | G122: 9. 교무업무운영 | I122: =SUM(I123:I123) -> 4,000
G123: ㅇ학교교육계획서 제작 400NTD×10부 | H123: = | I123: 4,000
G124: 10 입학식 및 졸업식(초등학교) | I124: =SUM(I125:I125) -> 15,000
G125: ㅇ입학식 선물 1000NTD×15명 | H125: = | I125: =1000*15 -> 15,000
G126: 11. 입학식 및 졸업식(유치원) | I126: =SUM(I127:I130) -> 21,200
G127: ㅇ입학선물 1,000NTD×10명 | H127: = | I127: =1000*10 -> 10,000
G128: ㅇ졸업사진 촬영(교원) 800NTD×3명 | H128: = | I128: =800*3 -> 2,400
G129: ㅇ졸업앨범 제작(학교보관용) 800NTD×1부 | H129: = | I129: =800*1 -> 800
G130: ㅇ졸업선물 800NTD×10명 | H130: = | I130: =800*10 -> 8,000
G131: 12. 토요한글학교 운영(재외동포재단지원금) | I131: =SUM(I132:I132) -> 153,600
G132: ㅇ강사비 1,200NTD×4시간×16주 | H132: = | I132: =1200*2*4*16 -> 153,600
G133: 13. 방과후학교운영 | I133: =SUM(I134:I136) -> 224,200
G134: ㅇ강사수당(교육부지원금) 600NTD×250시간 | H134: = | I134: =600*250 -> 150,000
G135: ㅇ강사수당(학교자체지원금) 660NTD×70시간 | H135: = | I135: =660*70 -> 46,200
G136: ㅇ교재 및 재료비(교육부지원금) 2,800NTD×10회 | H136: = | I136: 28,000
A137: - 학생복리비 | C137: 645,250 | E137: =I137+I141+I147+I149+I154+I157+I159 -> 946,850 | F137: =E137-C137 -> 301,600 | G137: 1. 학생보건안전관리 | I137: =SUM(I138:I140) -> 51,650
G138: ㅇ학교안전공제회비(학생,교직원) 550NTD×53명 | H138: = | I138: =550*53 -> 29,150
G139: ㅇ응급학생 병원후송 500NTD×5회 | H139: = | I139: =500*5 -> 2,500
G140: ㅇ약품 2,000NTD×10회 | H140: = | I140: =2000*10 -> 20,000
G141: 2. 학교환경위생관리 | I141: =SUM(I142:I146) -> 186,800
G142: ㅇ정수기 필터교환 650NTD×2대×6회 | H142: = | I142: =650*2*6 -> 7,800
G143: ㅇ정수기 소독 3,500NTD×2대×1회 | H143: = | I143: =3500*2 -> 7,000
G144: ㅇ저수조 청소 5,000NTD×2회 | H144: = | I144: =5000*2 -> 10,000
G145: ㅇ방학중 대청소 45,000NTD×2회 | H145: = | I145: =2*45000 -> 90,000
G146: ㅇ교사 소독 9,000NTD×8회= | H146: = | I146: =9000*8 -> 72,000
G147: 3. 학교급식비 지원 | I147: =SUM(I148:I148) -> 236,600
G148: ㅇ간식비 지원 20NTD*182일*65명 | H148: = | I148: =20*182*65 -> 236,600
G149: 4. 통학차량 운영지원 | I149: =SUM(I150:I153) -> 271,400
G150: ㅇ차량 보험료 40,00NTD×2대×1년 | H150: = | I150: =40000*2 -> 80,000
G151: ㅇ차량 등록세 및 연료세 15,00NTD×2대×1년 | H151: = | I151: =15000*2 -> 30,000
G152: ㅇ주차요금 7,000NTD×3분기 | H152: = | I152: =7000*3 -> 21,000
G153: ㅇ차량 유류 15,600NTD×9월 | H153: = | I153: =15600*9 -> 140,400
G154: 5. 현장학습 지원 | I154: =SUM(I155:I156) -> 50,400
G155: ㅇ현장학습 차량 임차비 11,700NTD×2회 | H155: = | I155: =11700*2 -> 23,400
G156: ㅇ현장학습 차량비 지원(기사인건비) 750NTD×1명×12회×3시간 | H156: = | I156: =750*1*12*3 -> 27,000
G157: 6. 저소득층자녀 학비지원(교육부지원금) | I157: =I158 -> 150,000
G158: ㅇ저소득층 자녀 학비 지원금 150,000NTD | H158: = | I158: 150,000
G159: 7. 기타 학생복지 지원 | I159: 0
B160: - 업무추진비 | C160: 45,000 | E160: =SUM(I160) -> 83,000 | F160: =E160-C160 -> 38,000 | G160: 1. 기관업무추진비 | I160: =SUM(I161:I162) -> 83,000
G161: ㅇ경조사비 1,500NTD×2회 | H161: = | I161: =1500*2 -> 3,000
G162: ㅇ교직원 간담회 500NTD×20명×8회 | H162: = | I162: =500*20*8 -> 80,000
A163: 자산취득비 | C163: =C165 -> 20,000 | D163: 0 | E163: =E165 -> 20,000 | F163: =E163-C163 -> 0 | H163: =
B165: - 자산취득비 | C165: 20,000 | E165: =I165 -> 20,000 | F165: =E165-C165 -> 0 | G165: 1. 교육환경개선 | I165: =SUM(I166) -> 20,000
G166: ㅇ 사무용 비품 5,000NTD×4회 | H166: = | I166: =5000*4 -> 20,000
A167: 시설(대수선)비 | C167: =SUM(C169) -> 3,172,520 | D167: 0 | E167: =SUM(E169) -> 1,476,184 | F167: =E167-C167 -> -1,696,336 | H167: =
B169: - 시설비 | C169: 3,172,520 | E169: =I169 -> 1,476,184 | F169: =E169-C169 -> -1,696,336 | G169: 1. 시설비 | I169: =SUM(I170:I170) -> 1,476,184
G170: ㅇ 시설 개보수비 | H170: = | I170: 1,476,184
A171: 수익자부담경비 | C171: =SUM(C173,C180,C182,C191,C198) -> 908,400 | D171: 0 | E171: =SUM(E173,E180,E182,E191,E198) -> 2,391,660 | F171: =E171-C171 -> 1,483,260 | H171: =
B173: - 현장학습비 | C173: 48,000 | E173: =SUM(I173,I175,I178) -> 95,000 | F173: =E173-C173 -> 47,000 | G173: 1. 현장체험학습(초등학교) | I173: =SUM(I174:I174) -> 41,000
G174: ㅇ 활동비 및 입장료 500NTD×2회×41명 | H174: = | I174: =500*2*41 -> 41,000
G175: 2. 현장체험학습(유치원) | I175: =SUM(I176:I177) -> 24,000
G176: ㅇ 활동비 및 입장료 500NTD×24명×2회 | H176: = | I176: =500*24*2 -> 24,000
G178: 3. 수학여행 | I178: =SUM(I179:I179) -> 30,000
G179: ㅇ 활동비 10,000NTD×3명×1회 | H179: = | I179: =10000*3 -> 30,000
B180: - 학생수련활동비 | C180: 0 | D180: 0 | E180: 0 | F180: =E180-C180 -> 0 | G180: 1. 수련활동비 | I180: 0
B182: - 학교급식비 | C182: 0 | E182: =SUM(I182,I184,I189,I187) -> 1,419,360 | F182: =E182-C182 -> 1,419,360 | G182: 1. 급식 재료구입비 | I182: =SUM(I183) -> 465,600
G183: ㅇ식재료 구입비 12.000NTD×37주 | H183: = | I183: =12000*37+21600 -> 465,600
G184: 2. 급식종사원인건비 | I184: =SUM(I185:I186) -> 806,400
G185: ㅇ 조리사 400NTD×192일×6시간 | H185: = | I185: =400*6*192 -> 460,800
G186: ㅇ 조리원 300NTD×192일×6시간 | H186: = | I186: =300*192*6 -> 345,600
G187: 3. 운영비 | I187: =I188 -> 60,000
G188: ㅇ 조리기구 구입비 | H188: = | I188: 60,000
G189: 4. 유치원 간식비 | I189: =SUM(I190:I190) -> 87,360
G190: ㅇ 간식비 20NTD×24명×182일 | H190: = | I190: 87,360
B191: - 방과후학교교육활동비 | C191: 415,400 | E191: =SUM(I191,I195) -> 345,600 | F191: =E191-C191 -> -69,800 | G191: 1. 방과후학교 운영 | I191: =I192+I193+I194 -> 153,600
G192: ㅇ강사수당 | H192: = | I192: 137,480
G193: ㅇ전기요금 및 수용비 | H193: = | I193: 8,120
G194: ㅇ교재 및 재료비 | H194: = | I194: =800*10 -> 8,000
G195: 2. 토요한글학교 운영 | I195: =SUM(I196:I197) -> 192,000
G196: ㅇ강사수당 | H196: = | I196: 24,000
G197: ㅇ관리자 수당 14,000NTD×12월 | H197: = | I197: =14000*12 -> 168,000
B198: - 기타수익자 부담경비 | C198: 445,000 | E198: =SUM(I198,I201,I203) -> 531,700 | F198: =E198-C198 -> 86,700 | G198: 1. 통학차량 운영 | I198: =SUM(I199:I200) -> 509,600
G199: ㅇ통학차량 기사인건비(130일분) 335NTD×1명×5시간×160일 | H199: = | I199: =335*1*5*130 -> 217,750
G200: ㅇ통학차량 기사인건비(130일분) 435NTD×1명×5시간×160일 | H200: = | I200: =435*130*5+9100 -> 291,850
G201: 2. 졸업앨범 제작(초등학교) | I201: =SUM(I202:I202) -> 5,100
G202: ㅇ졸업앨범제작비 3명× 1,700 NTD | H202: = | I202: =1700*3 -> 5,100
G203: 3. 졸업앨범 제작(유치원) | I203: =SUM(I204:I204) -> 17,000
G204: ㅇ졸업앨범제작비 10명× 1,700 NTD | H204: = | I204: =10*1700 -> 17,000
A205: 예비비및기타 | C205: 0 | D205: 0 | E205: =I205 -> 0 | F205: 0 | H205: = | I205: =I207+I209+I211+I213 -> 0
B207: - 예비비 | C207: 0 | D207: 0 | F207: 0 | G207: 1. 예비비
B209: - 다음연도이월금 | C209: 0 | D209: 0 | E209: =I209 -> 0 | F209: 0 | G209: 1. 다음연도 이월금 | I209: =I210 -> 0
B211: - 적립금 | C211: 0 | D211: 0 | E211: 0 | F211: 0 | G211: 1. 적립금 | I211: 0
B213: - 환차손 | C213: 0 | D213: 0 | E213: 0 | F213: 0 | G213: 1. 환차손 | I213: 0
... 1 more rows
